bitfinex-derivatives/quotes_SOLF0:USTF0_20250320
["timestamp","ask_amount","ask_price","bid_price","bid_amount"]
[1742506921952,7.89175498,127.7,127.69,0.05201877]
[1742506922647,0.05715498,127.7,127.69,0.05201877]
[1742506924954,0.05715498,127.7,127.69,7.88721877]
[1742506926050,27.9,127.74,127.69,7.89201877]
[1742506926349,27.9,127.74,127.7,2.0034]
[1742506926545,27.9,127.74,127.72,7.833]
[1742506927142,27.95721845,127.74,127.72,7.88456958]
[1742506927648,35.78941845,127.74,127.72,7.88456958]
[1742506928641,35.78941845,127.74,127.72,0.05156958]
[1742506928854,7.8327,127.73,127.72,0.05156958]
[1742506929250,19.66594171,127.73,127.68,7.8355]
[1742506929452,21.71534171,127.73,127.68,7.8355]
[1742506930154,27.95721845,127.74,127.66,19.66594171]
[1742506930354,27.95721845,127.74,127.69,0.05829049]
[1742506930355,27.9,127.74,127.69,0.05829049]
[1742506930650,0.05639753,127.71,127.7,7.8343]
[1742506931050,0.05639753,127.71,127.69,0.05829049]
[1742506931354,28.01639753,127.71,127.69,0.05829049]
[1742506931952,28.01639753,127.71,127.69,7.89329049]
[1742506932849,28.01639753,127.71,127.69,0.05829049]
[1742506933743,35.85049753,127.71,127.69,0.05829049]
[1742506933944,7.89049753,127.71,127.69,0.05829049]
[1742506934253,35.83049753,127.71,127.69,0.05829049]
[1742506935945,0.05639753,127.71,127.69,0.05829049]
[1742506936244,27.94,127.74,127.69,0.05829049]
[1742506936449,27.96,127.75,127.69,4.2068]
[1742506936650,7.8324,127.74,127.72,7.8333]
[1742506937354,7.88900953,127.74,127.72,7.890638]
[1742506938547,0.05660953,127.74,127.73,7.8327]
[1742506941554,27.96,127.78,127.72,0.057338]
[1742506941755,35.7902,127.78,127.71,47.64594171]
[1742506942062,27.96,127.78,127.74,7.8318]
[1742506942354,7.8307,127.77,127.74,7.8318]
[1742506942753,7.88759416,127.77,127.74,7.88968917]
[1742506946551,7.88759416,127.77,127.75,7.8315]
[1742506950267,0.05689416,127.77,127.75,7.8315]
[1742506952069,7.88719416,127.77,127.75,7.8315]
[1742506952663,0.05689416,127.77,127.75,7.8315]
[1742506956074,0.05689416,127.77,127.74,0.05788917]
[1742506956475,0.05689416,127.77,127.76,7.8309]
[1742506957577,0.05689416,127.77,127.75,7.8311]
[1742506958078,7.88729416,127.77,127.75,7.8311]
[1742506959380,0.05689416,127.77,127.74,0.05788917]
[1742506959879,0.05689416,127.77,127.74,27.99788917]
[1742506960580,0.05689416,127.77,127.74,40.58240019]
[1742506962377,0.05689416,127.77,127.74,27.99788917]
[1742506962879,7.88719416,127.77,127.75,7.8312]
[1742506964670,0.05689416,127.77,127.74,40.58240019]
[1742506966082,0.05689416,127.77,127.76,7.8309]
[1742506971483,0.05689416,127.77,127.76,20.41541102]
[1742506975080,0.05689416,127.77,127.76,7.8309]
[1742506994703,0.05689416,127.77,127.76,20.41541102]
[1742506997601,0.05689416,127.77,127.76,7.8309]
[1742507004507,0.05689416,127.77,127.76,20.41541102]
[1742507030429,0.05689416,127.77,127.76,7.8309]
[1742507033835,0.05689416,127.77,127.74,12.64240019]
[1742507033836,0.05689416,127.77,127.75,7.8312]
[1742507034241,0.05689416,127.77,127.75,7.8311]
[1742507035335,7.88739416,127.77,127.74,20.47420019]
[1742507036343,7.88739416,127.77,127.75,7.8314]
[1742507037538,0.05689416,127.77,127.74,12.64240019]
[1742507037744,0.05689416,127.77,127.76,12.58451102]
[1742507037943,27.92,127.82,127.76,12.58451102]
[1742507038135,35.7475,127.82,127.79,7.8286]
[1742507039037,35.79346668,127.82,127.79,7.8829055]
[1742507039347,35.79346668,127.82,127.8,7.8283]
[1742507040135,35.79346668,127.82,127.79,7.8830055]
[1742507040345,12.6304777,127.82,127.79,0.0543055]
[1742507040546,27.9,127.81,127.79,0.0543055]
[1742507040843,0.04596668,127.82,127.8,12.58451102]
[1742507041440,0.04596668,127.82,127.81,35.7478]
[1742507043941,0.04596668,127.82,127.81,7.8278]
[1742507044443,0.04596668,127.82,127.8,20.41261102]
[1742507045544,0.04596668,127.82,127.79,0.0543055]
[1742507045745,12.6304777,127.82,127.79,0.0543055]
[1742507045949,12.58451102,127.8,127.75,12.58451102]
[1742507046246,28.04,127.79,127.75,12.58451102]
[1742507046549,7.8306,127.77,127.75,12.58451102]
[1742507046748,28.04,127.79,127.75,12.58451102]
[1742507046947,7.83,127.78,127.75,12.58451102]
[1742507047140,0.0600964,127.78,127.76,0.04927538]
[1742507047355,7.8303,127.77,127.76,0.04927538]
[1742507048448,0.0600964,127.78,127.76,0.04927538]
[1742507048635,0.0600964,127.78,127.77,12.58451102]
[1742507048835,0.0600964,127.78,127.77,20.41481102]
[1742507049046,28.12,127.85,127.77,48.52451102]
[1742507049246,28.12,127.85,127.8,12.58451102]
[1742507049749,147.11130756,127.85,127.8,12.58451102]
[1742507050245,0.04017578,127.84,127.81,0.05442802]
[1742507050441,0.04017578,127.84,127.82,12.58451102]
[1742507050845,0.04017578,127.84,127.82,20.41141102]
[1742507051048,0.04017578,127.84,127.81,0.05442802]
[1742507051440,7.86617578,127.84,127.81,7.88182802]
[1742507052444,7.86617578,127.84,127.82,7.8271]
[1742507052643,7.86617578,127.84,127.81,0.05442802]
[1742507053437,0.04017578,127.84,127.81,0.05442802]
[1742507053642,0.04017578,127.84,127.81,7.88212802]
[1742507054449,7.86627578,127.84,127.81,7.88212802]
[1742507055553,7.86627578,127.84,127.82,12.58451102]
[1742507055738,7.86627578,127.84,127.82,20.41171102]
[1742507055943,7.86627578,127.84,127.82,12.58451102]
[1742507059250,7.86627578,127.84,127.82,20.41171102]
[1742507060447,0.04017578,127.84,127.82,20.41171102]
[1742507060645,55.13891763,127.9,127.83,28.12]
[1742507060850,29.5580899,127.89,127.84,12.58451102]
[1742507061150,7.8241,127.88,127.85,7.8253]
[1742507061959,7.8241,127.88,127.85,7.8761489]
[1742507064257,7.8243,127.87,127.85,7.8761489]
[1742507064652,7.8243,127.87,127.85,0.0508489]
[1742507066962,48.52931102,127.86,127.85,0.0508489]
[1742507068262,35.9448,127.86,127.85,0.0508489]
[1742507074274,28.12,127.86,127.85,0.0508489]
[1742507075366,28.12,127.86,127.85,7.8762489]
[1742507076169,28.12,127.86,127.85,0.0508489]
[1742507076768,35.9448,127.86,127.85,0.0508489]
[1742507077067,7.8248,127.86,127.85,0.0508489]
[1742507081371,15.6448,127.86,127.85,0.00782364]
[1742507081671,14.0238,127.86,127.78,12.58451102]
[1742507081873,14.0238,127.86,127.73,278.0953]
[1742507081874,12.58451102,127.83,127.77,7.83]
[1742507082057,28.12,127.82,127.77,7.83]
[1742507082260,12.58451102,127.81,127.76,12.58451102]
[1742507082462,12.58451102,127.81,127.76,20.41511102]
[1742507082662,7.83,127.78,127.77,0.05895224]
[1742507083175,7.8307,127.77,127.74,7.8318]
[1742507083472,28.14,127.76,127.74,7.8318]
[1742507084474,28.19118032,127.76,127.74,7.88415516]
[1742507091379,36.02208032,127.76,127.74,7.88415516]
[1742507092079,28.19118032,127.76,127.74,7.88415516]
[1742507098586,28.19118032,127.76,127.75,7.8315]
[1742507098981,0.05118032,127.76,127.75,20.41601102]
[1742507099182,12.58451102,127.83,127.75,12.58451102]
[1742507099374,3.56047516,127.86,127.78,12.58451102]
[1742507099579,145.27114231,127.87,127.84,20.41041102]
[1742507099777,145.27114231,127.87,127.84,12.58451102]
[1742507099975,139.39913,127.87,127.84,12.58451102]
[1742507100171,180.16364102,127.87,127.81,12.58451102]
[1742507100378,12.58451102,127.82,127.76,12.58451102]
[1742507100573,12.58451102,127.8,127.76,12.58451102]
[1742507100779,28.32,127.79,127.74,12.58451102]
[1742507100979,7.8297,127.78,127.74,12.58451102]
[1742507101486,0.0520994,127.77,127.75,0.05758449]
[1742507102682,28.3520994,127.77,127.75,0.05758449]
[1742507104389,36.1823994,127.77,127.75,0.05758449]
[1742507106388,7.8276,127.82,127.76,12.58451102]
[1742507106602,36.1076,127.82,127.79,12.58451102]
[1742507107086,7.8276,127.82,127.79,12.58451102]
[1742507107492,7.87792531,127.82,127.79,20.47191]
[1742507108592,7.87792531,127.82,127.79,7.88739898]
[1742507109694,0.05032531,127.82,127.79,0.05839898]
[1742507110294,7.8278,127.81,127.79,0.05839898]
[1742507111590,0.05032531,127.82,127.79,0.05839898]
[1742507112186,7.8284,127.81,127.79,0.05839898]
[1742507112392,0.05032531,127.82,127.79,0.05839898]
[1742507114300,7.8278,127.81,127.79,0.05839898]
[1742507115089,0.05032531,127.82,127.79,0.05839898]
[1742507116202,7.8284,127.8,127.79,0.05839898]
[1742507154944,7.8282,127.81,127.79,7.88739898]
[1742507155147,12.63483633,127.82,127.79,0.05839898]
[1742507156046,7.8284,127.8,127.79,0.05839898]
[1742507161150,36.0284,127.8,127.79,0.05839898]
[1742507171049,48.61291102,127.8,127.79,0.05839898]
[1742507194176,40.78451102,127.8,127.71,2.0352]
[1742507194479,12.58451102,127.76,127.71,2.0352]
[1742507194681,35.792,127.75,127.71,9.869]
[1742507194876,27.96,127.75,127.71,2.0352]
[1742507195270,0.05623468,127.74,127.72,0.05270167]
[1742507196381,7.88863468,127.74,127.72,0.05270167]
[1742507197476,0.05623468,127.74,127.72,0.05270167]
[1742507198677,7.8327,127.73,127.72,0.05270167]
[1742507232915,48.3931457,127.74,127.72,0.05270167]
[1742507233116,48.3931457,127.74,127.72,7.88600167]
[1742507233307,27.97623468,127.74,127.72,7.88600167]
[1742507233913,35.80833468,127.74,127.72,7.88600167]
[1742507234107,0.05623468,127.74,127.73,7.8327]
[1742507234516,7.88883468,127.74,127.72,7.88570167]
[1742507235117,7.8327,127.73,127.72,0.05270167]
[1742507235515,0.05623468,127.74,127.72,0.05270167]
[1742507235817,7.88863468,127.74,127.72,7.88580167]
[1742507236019,7.88863468,127.74,127.72,0.05270167]
[1742507236218,7.8327,127.73,127.72,0.05270167]
[1742507236418,0.05623468,127.74,127.72,0.05270167]
[1742507236617,7.88883468,127.74,127.72,0.05270167]
[1742507236816,0.05623468,127.74,127.72,0.05270167]
[1742507237319,7.8327,127.73,127.72,0.05270167]
[1742507238021,20.41721102,127.73,127.72,0.05270167]
[1742507249619,48.65721102,127.73,127.72,0.05270167]
[1742507288969,48.33721102,127.73,127.72,0.05270167]
[1742507296672,35.7527,127.73,127.72,0.05270167]
[1742507300675,7.8327,127.73,127.72,0.05270167]
[1742507300866,35.8527,127.73,127.72,0.05270167]
[1742507301569,7.8327,127.73,127.72,0.05270167]
[1742507301777,35.8527,127.73,127.72,0.05270167]
[1742507310479,7.8327,127.73,127.72,0.05270167]
[1742507310777,35.7727,127.73,127.72,0.05270167]
[1742507311365,27.94,127.73,127.72,0.05270167]
[1742507312168,35.7727,127.73,127.72,0.05270167]
[1742507312476,0.05623468,127.74,127.72,7.88600167]
[1742507312682,35.80863468,127.74,127.72,7.88600167]
[1742507313071,7.88863468,127.74,127.72,7.88600167]
[1742507313472,0.05623468,127.74,127.72,7.88600167]
[1742507314582,7.88853468,127.74,127.72,7.88600167]
[1742507315483,0.05623468,127.74,127.73,7.8327]
[1742507315684,40.48451102,127.77,127.73,4.2181]
[1742507315886,40.48451102,127.77,127.74,7.8317]
[1742507316776,48.37135106,127.77,127.74,7.8317]
[1742507316976,48.35135106,127.77,127.74,7.8317]
[1742507317181,48.35135106,127.77,127.75,7.8315]
[1742507317576,48.35135106,127.77,127.75,7.88157147]
[1742507317773,7.8309,127.76,127.75,0.05007147]
[1742507329989,40.52065106,127.77,127.75,0.05007147]
[1742507330290,0.05614004,127.77,127.75,0.05007147]
[1742507330899,12.64065106,127.77,127.75,0.05007147]
[1742507331102,7.8309,127.76,127.75,0.05007147]
[1742507340804,35.66664004,127.77,127.75,0.05007147]
[1742507341103,35.66664004,127.77,127.75,7.88157147]
[1742507342307,7.88664004,127.77,127.75,7.88157147]
[1742507352614,7.88664004,127.77,127.75,0.05007147]
[1742507354216,7.88664004,127.77,127.75,7.88157147]
[1742507360230,7.88664004,127.77,127.75,0.05007147]
[1742507364732,7.8309,127.76,127.75,0.05007147]
[1742507365932,7.8328,127.73,127.7,40.22451102]
[1742507366232,40.22451102,127.75,127.7,20.41871102]
[1742507366432,7.8342,127.71,127.69,258.52]
[1742507366923,7.8342,127.71,127.69,266.3548]
[1742507367130,7.88919662,127.71,127.69,266.40645847]
[1742507367531,7.88919662,127.71,127.69,7.88645847]
[1742507368616,7.88919662,127.71,127.69,0.05165847]
[1742507368828,7.8346,127.7,127.69,0.05165847]
[1742507369029,35.4746,127.7,127.69,0.05165847]
[1742507370728,40.22451102,127.7,127.65,12.58451102]
[1742507371027,40.22451102,127.7,127.64,79.3182143]
[1742507371226,42.26931102,127.7,127.65,7.8373]
[1742507371731,7.8361,127.68,127.65,7.8373]
[1742507371934,35.4761,127.68,127.66,0.05499108]
[1742507372136,27.64,127.68,127.66,7.89199108]
[1742507373533,0.05375574,127.69,127.67,7.8363]
[1742507373732,27.67375574,127.69,127.67,7.8363]
[1742507374034,27.67375574,127.69,127.66,12.6395021]
[1742507376532,27.67375574,127.69,127.68,12.58451102]
[1742507376533,0.05375574,127.69,127.68,12.58451102]
[1742507376929,0.05375574,127.69,127.68,20.42031102]
[1742507385137,0.05375574,127.69,127.68,7.8358]
[1742507391035,0.05375574,127.69,127.67,7.836]
[1742507394645,0.05375574,127.69,127.66,12.6395021]
[1742507395446,0.05375574,127.69,127.68,7.8358]
[1742507412063,0.05375574,127.69,127.67,7.8361]
[1742507412365,7.88895574,127.69,127.67,7.8361]
[1742507412565,35.36895574,127.69,127.67,7.8361]
[1742507413457,35.36895574,127.69,127.66,12.6395021]
[1742507413458,27.53375574,127.69,127.66,12.6395021]
[1742507415569,27.53375574,127.69,127.68,7.8358]
[1742507416064,0.05375574,127.69,127.68,7.8358]
[1742507416567,0.05375574,127.69,127.68,20.42031102]
[1742507418370,0.05375574,127.69,127.68,7.8358]
[1742507419168,7.88895574,127.69,127.67,7.8361]
[1742507421369,7.8358,127.68,127.66,7.89179108]
[1742507425768,35.30935574,127.69,127.67,7.8364]
[1742507426188,5.574e-05,127.69,127.68,12.58451102]
[1742507426488,32.27006614,127.76,127.68,12.58451102]
[1742507426685,27.48,127.75,127.7,12.58451102]
[1742507426878,40.06451102,127.75,127.7,12.58451102]
[1742507427274,7.8324,127.74,127.71,7.8337]
[1742507427486,7.8324,127.74,127.71,7.89219367]
[1742507427487,27.48,127.73,127.71,7.89219367]
[1742507429882,35.3129,127.73,127.71,7.89219367]
[1742507431387,7.8333,127.72,127.71,0.05849367]
[1742507436988,7.8365,127.67,127.65,7.8373]
[1742507438190,7.8900758,127.67,127.65,7.89123811]
[1742507438393,7.8900758,127.67,127.65,20.47574913]
[1742507442990,7.8900758,127.67,127.65,12.63844913]
[1742507444596,7.8900758,127.67,127.65,20.47604913]
[1742507446799,7.837,127.66,127.65,0.05393811]
[1742507447105,0.0535758,127.67,127.65,0.05393811]
[1742507447508,7.8904758,127.67,127.65,0.05393811]
[1742507448200,7.8904758,127.67,127.65,7.89153811]
[1742507448504,0.0535758,127.67,127.65,7.89153811]
[1742507453104,0.0535758,127.67,127.66,7.837]
[1742507453403,7.8899758,127.67,127.65,0.05393811]
[1742507453596,7.8899758,127.67,127.65,7.89123811]
[1742507453793,0.0535758,127.67,127.65,7.89123811]
[1742507454902,7.8900758,127.67,127.65,7.89123811]
[1742507455392,0.0535758,127.67,127.65,0.05393811]
[1742507456203,7.8902758,127.67,127.65,7.89133811]
[1742507468810,47.84151102,127.66,127.65,0.05393811]
[1742507482924,20.42151102,127.66,127.65,0.05393811]
[1742507483224,47.84151102,127.66,127.65,0.05393811]
[1742507493131,47.84151102,127.66,127.65,3.811e-05]
[1742507493330,7.8398,127.62,127.59,14.67791102]
[1742507493527,35.2598,127.62,127.59,14.67791102]
[1742507493725,27.42,127.62,127.59,22.51901102]
[1742507494424,7.8402,127.61,127.59,22.57150606]
[1742507496431,7.8402,127.61,127.59,20.47810606]
[1742507503839,7.8402,127.61,127.59,7.89359504]
[1742507505330,4.5356,127.61,127.59,7.89359504]
[1742507505526,15.6725,127.68,127.59,7.89359504]
[1742507505527,172.23856205,127.7,127.6,40.00451102]
[1742507505727,184.82307307,127.7,127.63,12.58451102]
[1742507505933,192.65797307,127.7,127.65,7.8372]
[1742507506136,118.52509586,127.69,127.65,7.8372]
[1742507506330,118.52509586,127.69,127.63,12.58451102]
[1742507506732,0.05357318,127.67,127.65,0.04954585]
[1742507507035,27.63357318,127.67,127.65,0.04954585]
[1742507508134,27.63357318,127.67,127.65,7.88694585]
[1742507508338,0.05357318,127.67,127.65,7.88694585]
[1742507508731,0.05357318,127.67,127.66,7.837]
[1742507527356,20.41911102,127.7,127.68,7.8354]
[1742507527559,35.3146,127.7,127.68,7.8354]
[1742507528559,35.36579155,127.7,127.68,7.88798816]
[1742507528957,0.05119155,127.7,127.69,7.8352]
[1742507530759,27.52,127.73,127.72,7.8331]
[1742507532661,27.52,127.73,127.71,7.88822221]
[1742507533561,0.0503114,127.74,127.71,7.88822221]
[1742507533757,35.4225114,127.74,127.71,7.88822221]
[1742507537861,7.8825114,127.74,127.72,7.8333]
[1742507538058,35.4025114,127.74,127.72,7.8333]
[1742507538262,27.5703114,127.74,127.72,7.8333]
[1742507538560,0.0503114,127.74,127.72,7.8333]
[1742507538761,7.8825114,127.74,127.72,7.8333]
[1742507546471,7.8327,127.73,127.71,12.63893323]
[1742507546673,12.63482242,127.74,127.71,0.05442221]
[1742507547157,27.46,127.73,127.71,0.05442221]
[1742507547570,7.8333,127.72,127.71,0.05442221]
[1742507553262,27.46,127.73,127.67,12.58451102]
[1742507553471,7.8358,127.68,127.67,12.58451102]
[1742507553676,7.8358,127.68,127.66,7.837]
[1742507554278,7.8358,127.68,127.67,12.58451102]
[1742507554480,7.8859674,127.68,127.67,12.58451102]
[1742507558074,0.0501674,127.68,127.67,12.58451102]
[1742507559474,7.8859674,127.68,127.67,12.58451102]
[1742507560483,0.0501674,127.68,127.67,12.58451102]
[1742507563584,7.8859674,127.68,127.67,12.58451102]
[1742507564888,7.8859674,127.68,127.66,7.89248291]
[1742507565688,0.0501674,127.68,127.66,7.89248291]
[1742507567485,0.0501674,127.68,127.67,7.8364]
[1742507568485,0.0501674,127.68,127.67,20.42091102]
[1742507568694,27.58,127.72,127.67,12.58451102]
[1742507569193,6.3373,127.73,127.69,12.58451102]
[1742507569693,40.18451102,127.74,127.69,12.58451102]
[1742507569881,0.05185243,127.72,127.71,7.8335]
[1742507574992,35.4717,127.75,127.73,7.8323]
[1742507575699,27.64,127.75,127.73,7.8323]
[1742507576089,27.64,127.75,127.73,7.88319653]
[1742507577391,35.4716,127.75,127.73,7.88319653]
[1742507578006,35.4716,127.75,127.73,0.05089653]
[1742507579798,35.4516,127.75,127.73,0.05089653]
[1742507580201,27.62,127.75,127.73,0.05089653]
[1742507580697,7.8321,127.74,127.73,0.05089653]
[1742507594411,7.8321,127.74,127.66,12.58451102]
[1742507594412,12.58451102,127.74,127.66,12.58451102]
[1742507594608,12.58451102,127.7,127.65,271.18451102]
[1742507594809,7.8361,127.68,127.65,271.18451102]
[1742507595021,27.56,127.68,127.65,12.58451102]
[1742507595324,40.14451102,127.68,127.63,12.58451102]
[1742507595524,7.837,127.66,127.65,0.05101509]
[1742507597825,7.8367,127.67,127.65,0.05101509]
[1742507598419,7.8367,127.67,127.65,7.88861509]
[1742507604735,40.20256658,127.68,127.65,0.05101509]
[1742507605634,7.837,127.66,127.65,0.05101509]
[1742507605934,35.397,127.66,127.65,0.05101509]
[1742507608025,27.56,127.66,127.65,0.05101509]
[1742507609336,35.397,127.66,127.65,0.05101509]
[1742507624136,7.8392,127.63,127.61,7.8398]
[1742507624544,7.8392,127.63,127.61,20.42431102]
[1742507625447,7.8983406,127.63,127.61,20.48125049]
[1742507625837,0.0591406,127.63,127.61,20.48125049]
[1742507631549,0.0591406,127.63,127.62,7.8395]
[1742507632246,0.0591406,127.63,127.61,20.48125049]
[1742507632441,0.0591406,127.63,127.61,12.64145049]
[1742507632754,7.8982406,127.63,127.61,20.48135049]
[1742507635347,7.8982406,127.63,127.61,12.64145049]
[1742507643448,7.8982406,127.63,127.61,20.48145049]
[1742507643957,0.0591406,127.63,127.62,7.8395]
[1742507676969,35.3368,127.67,127.65,7.8375]
[1742507678169,35.39035514,127.67,127.65,7.89381743]
[1742507681682,0.05355514,127.67,127.66,7.837]
[1742507685781,7.88995514,127.67,127.65,7.89361743]
[1742507690491,0.05355514,127.67,127.66,7.837]
[1742507690697,0.05355514,127.67,127.65,0.05631743]
[1742507691293,7.88995514,127.67,127.65,7.89371743]
[1742507704413,7.88995514,127.67,127.66,7.837]
[1742507705116,7.88995514,127.67,127.65,7.89371743]
[1742507707904,7.837,127.66,127.65,0.05631743]
[1742507709405,0.05355514,127.67,127.65,7.89391743]
[1742507710516,7.837,127.66,127.65,7.89391743]
[1742507712014,7.89035514,127.67,127.65,7.89391743]
[1742507721125,7.89035514,127.67,127.66,7.837]
[1742507721326,0.05355514,127.67,127.66,7.837]
[1742507730439,0.05355514,127.67,127.65,0.05631743]
[1742507730633,27.42,127.66,127.6,258.62]
[1742507730835,42.15251102,127.66,127.6,258.62]
[1742507731034,44.18591102,127.66,127.61,12.58451102]
[1742507731733,7.8388,127.64,127.62,0.04968135]
[1742507731934,0.05329103,127.65,127.63,12.58451102]
[1742507732334,0.05329103,127.65,127.64,7.8382]
[1742507832348,0.05329103,127.65,127.62,0.04968135]
[1742507832655,0.05329103,127.65,127.62,12.63419237]
[1742507832854,35.2588,127.64,127.62,12.63419237]
[1742507834155,7.8389,127.63,127.62,12.63419237]
[1742507835049,7.8389,127.63,127.62,0.04968135]
[1742507837656,35.2585,127.64,127.62,0.04968135]
[1742507840756,35.2585,127.64,127.62,7.88908135]
[1742507845655,7.8389,127.63,127.62,0.04968135]
[1742507846156,27.42,127.64,127.62,0.04968135]
[1742507846551,35.2586,127.64,127.62,7.88918135]
[1742507847262,27.42,127.64,127.62,0.04968135]
[1742507847960,35.2585,127.64,127.62,7.88888135]
[1742507851962,7.8389,127.63,127.62,0.04968135]
[1742507856363,7.8413,127.59,127.58,12.58451102]
[1742507856563,27.42,127.6,127.56,12.58451102]
[1742507856763,27.42,127.6,127.51,43.53892042]
[1742507856963,7.8422,127.58,127.55,20.42791102]
[1742507857163,27.42,127.57,127.55,20.42791102]
[1742507857558,27.47331232,127.57,127.55,20.480338]
[1742507857956,27.47331232,127.57,127.55,0.05242698]
[1742507859061,35.31641232,127.57,127.55,0.05242698]
[1742507861259,27.47331232,127.57,127.55,0.05242698]
[1742507861567,12.58451102,127.56,127.51,20.43021102]
[1742507861759,7.8447,127.54,127.51,12.58451102]
[1742507861953,27.42,127.53,127.51,12.58451102]
[1742507862564,27.48018387,127.53,127.51,20.48075974]
[1742507862763,0.06018387,127.53,127.51,12.63485974]
[1742507863067,27.48018387,127.53,127.51,12.63485974]
[1742507863368,0.06018387,127.53,127.52,7.8456]
[1742507873462,258.72,127.59,127.55,7.8433]
[1742507873662,40.00451102,127.58,127.55,7.8433]
[1742507873966,47.84681102,127.58,127.55,7.8433]
[1742507874167,35.2623,127.58,127.55,7.8433]
[1742507874365,47.84681102,127.58,127.55,7.8433]
[1742507874568,47.90105882,127.58,127.55,7.89605962]
[1742507874769,20.48105882,127.58,127.56,7.8431]
[1742507874968,27.42,127.57,127.55,0.05275962]
[1742507875573,7.8432,127.56,127.55,0.05275962]
[1742507879884,7.845,127.54,127.44,15.7003]
[1742507880078,7.845,127.54,127.51,12.58451102]
[1742507880377,7.845,127.54,127.51,20.43061102]
[1742507880878,27.42,127.55,127.51,20.43061102]
[1742507881180,0.05076418,127.54,127.52,0.05829638]
[1742507881677,7.89546418,127.54,127.52,0.05829638]
[1742507881981,7.89546418,127.54,127.52,7.90389638]
[1742507883279,0.05076418,127.54,127.53,20.42951102]
[1742507889883,0.05076418,127.54,127.52,7.90389638]
[1742507890085,0.05076418,127.54,127.52,0.05829638]
[1742507890386,7.89556418,127.54,127.52,0.05829638]
[1742507891488,7.845,127.53,127.52,0.05829638]
[1742507894883,47.96951102,127.53,127.52,0.05829638]
[1742507897391,7.8476,127.49,127.47,7.8483]
[1742507897988,35.4672,127.5,127.47,7.8483]
[1742507898489,35.52059297,127.5,127.47,7.89772973]
[1742507898786,7.8477,127.49,127.47,7.89772973]
[1742507899886,35.52049297,127.5,127.47,7.89772973]
[1742507900087,35.52049297,127.5,127.48,7.8481]
[1742507906186,35.52049297,127.5,127.47,12.63394075]
[1742507906495,27.67339297,127.5,127.47,12.63394075]
[1742507906795,0.05339297,127.5,127.49,20.43201102]
[1742507907189,18.81201102,127.57,127.53,7.8446]
[1742507907493,27.66,127.56,127.52,12.58451102]
[1742507907690,26.65491102,127.57,127.52,12.58451102]
[1742507907890,27.68,127.57,127.52,12.58451102]
[1742507908397,0.0563064,127.56,127.55,7.8432]
[1742507914597,35.5016,127.59,127.57,7.8425]
[1742507914795,12.58451102,127.61,127.56,12.58451102]
[1742507915498,7.841,127.6,127.58,7.8416]
[1742507915696,0.06000228,127.6,127.58,7.8416]
[1742507916999,0.06000228,127.6,127.57,0.05685169]
[1742507917198,0.06000228,127.6,127.58,12.58451102]
[1742507917902,0.06000228,127.6,127.59,7.8413]
[1742507930403,27.58,127.65,127.58,40.16451102]
[1742507930601,27.58,127.65,127.61,12.58451102]
[1742507931597,0.05286929,127.64,127.63,7.8388]
[1742507932806,0.05286929,127.64,127.62,7.89877963]
[1742507933610,7.89126929,127.64,127.62,7.89877963]
[1742507934303,7.8389,127.63,127.62,0.05957963]
[1742507937607,27.56,127.63,127.58,12.58451102]
[1742507937808,12.58451102,127.62,127.57,271.34451102]
[1742507938005,27.6,127.61,127.57,271.34451102]
[1742507938202,7.8419,127.58,127.57,271.34451102]
[1742507940307,0.05401016,127.59,127.56,0.06002823]
[1742507940610,12.58451102,127.58,127.56,0.06002823]
[1742507940815,27.6,127.57,127.56,0.06002823]
[1742507941013,27.6,127.57,127.53,12.58451102]
[1742507941201,12.58451102,127.56,127.52,258.7]
[1742507941400,27.64,127.55,127.52,258.7]
[1742507941605,27.64,127.55,127.51,20.43041102]
[1742507942012,7.8448,127.54,127.51,20.43041102]
[1742507942214,7.89788583,127.54,127.52,0.05177617]
[1742507943112,7.845,127.53,127.52,0.05177617]
[1742507944621,7.89778583,127.54,127.52,0.05177617]
[1742507944811,0.05308583,127.54,127.52,7.89737617]
[1742507945012,0.05308583,127.54,127.53,12.58451102]
[1742507945211,27.64,127.59,127.53,12.58451102]
[1742507945414,27.64,127.59,127.57,7.8421]
[1742507945613,27.64,127.59,127.56,12.58451102]
[1742507945813,11.8891,127.61,127.56,12.58451102]
[1742507946124,27.68,127.62,127.58,12.58451102]
[1742507946422,0.05804965,127.6,127.59,7.8413]
[1742507953722,4.965e-05,127.6,127.59,7.8413]
[1742507953926,27.66,127.65,127.63,7.8387]
[1742507954629,6.2284,127.66,127.63,7.8387]
[1742507954934,33.9084,127.66,127.63,7.8387]